{"text_format":"1","workbook":"xlsx","n_sheets":2,"sheets":["Pasiūlymas","Subtiekėjai ir priedai"],"not_rendered":{"charts":0,"images":0,"macros":1,"external_links":0,"defined_names":0,"comments":0,"pivot_tables":0},"unopened":[],"bounds":{"document_bytes":16777216,"sheet_cells":100000,"rows_first":2000,"rows_last":500,"rows_between":2000,"halvings":0,"cell_chars":16384,"cell_head_chars":4096},"cells_cut":0,"cells_raw":0,"read":"whole","date_system":"1900"}

{"sheet":"Pasiūlymas","index":0,"n_rows":254,"n_cols":7,"rows_kept":254,"cut":false,"hidden":false,"merged":[[29,0,29,2],[29,3,29,5],[11,0,11,1],[11,2,11,5],[12,0,12,1],[12,2,12,5],[13,0,13,1],[13,2,13,5],[14,0,14,1],[14,2,14,5],[15,0,15,1],[15,2,15,5],[16,0,16,1],[16,2,16,5],[17,0,17,1],[17,2,17,5],[18,0,18,1],[18,2,18,5],[23,0,23,5],[19,0,19,1],[20,0,20,1],[19,2,19,5],[20,2,20,5],[22,0,22,5],[27,0,27,5],[28,0,28,5],[24,0,24,5],[25,0,25,5],[26,0,26,5]]}
[]
["PIKIMO SĄLYGŲ PRIEDAS \"PASIŪLYMO FORMA\""]
[]
["PRIEMONIŲ TRAUMATOLOGIJAI PIRKIMAS"]
[]
["Kam:","LSMU Kauno ligoninė"]
[]
["Data:","2021.10.18"]
["Nr.:"]
["Vieta:","Vilnius"]
[]
["Tiekėjo pavadinimas / Ūkio subjektų grupės nariai:",null,"UAB Kristameda"]
["Tiekėjo kodas (-ai):",null,301245735]
["Tiekėjo adresas (-ai):",null,"Treniotos g. 33, 08115 Vilnius"]
["Tiekėjo PVM mokėtojo kodas(-ai):",null,"LT100003755213"]
["Tiekėjo / Ūkio subjektų grupės atsakingo partnerio sąskaitos numeris, banko pavadinimas ir banko kodas (-ai):",null,"LT157044060008231151, AB SEB bankas, banko kodas 70440"]
["Asmens atsakingo už pasiūlymą vardas, pavardė:",null,"Gintaras Vaitkevičius"]
["Asmens atsakingo už pasiūlymą telefono numeris, el. pašto adresas:",null,"370 600 68931, kristameda@gmail.com"]
["Tiekėjo / Ūkio subjektų grupės, laimėjimo atveju, pasirašančio sutartį asmens vardas, pavardė, pareigos:",null,"Direktorius Gintaras Vaitkevičius"]
["Tiekėjo / Ūkio subjektų grupės, laimėjimo atveju, už sutarties vykdymą atsakingo asmens vardas, pavardė, telefono numeris, elektroninio pašto adresas:",null,"Direktorius Gintaras Vaitkevičius"]
["(1) Tiekėjo / Ūkio subjektų grupės narių, (2) ūkio subjektų, kurių pajėgumais remiamasi, ir (3) jei pašalinimo pagrindai taikomi visiems subtiekėjams - subtiekėjų, kolegialaus priežiūros organo (Stebėtojų tarybos) ir (ar) kolegialaus valdymo organo (Valdybos) narių sąrašas (jei sudaryta) ir (ar) asmuo, kuriam suteikti VPĮ 46 str. 2 d. 2 p. numatyti įgaliojimai",null,null,null,null,null,{"$f":"IF((SUMPRODUCT(--(C21=\"\"))>0), \"Privaloma užpildyti, kai taikomi pašalinimo pagrindai\", \"\")","v":"Privaloma užpildyti, kai taikomi pašalinimo pagrindai"}]
[]
["Tiekėjo patvirtinimai:"]
["1. Šiuo pasiūlymu pažymime, kad sutinkame su visomi pirkimo sąlygomis, nustatytomis:"]
["1.1. viešojo pirkimo dokumentuose"]
["1.2. kituose pirkimo dokumentuose (jų paaiškinimuose, papildymuose)."]
["2. Patvirtiname, kad informacija ir duomenys, pateikti pasiūlyme, yra teisingi ir apima viską, ko reikia tinkamam sutarties įvykdymui"]
["3. Patvirtiname, kad jei pasiūlyme nenurodyti kolegialaus priežiūros/valdymo organų nariai, šie organai juridiniuose asmenyse nėra sudaryti (taikoma, kai pirkimo dokumentuose nustatyti pašalinimo pagrindai)."]
["4. Pasiūlymas galioja iki termino, nustatyto pirkimo dokumentuose."]
["5. Tais atvejais, kai pagal galiojančius teisės aktus tiekėjui nereikia mokėti PVM, jis nurodo priežastis, dėl kurių PVM nemoka:"]
["6. Tiekėjas kainas pateikia, nurodydamas ne daugiau skaičių po kablelio, nei leidžiama pirkimo dokumentuose."]
["1. DALIS","PLOKŠTELĖS, SRAIGTAI, VIELOS"]
[]
["Tiekėjo pasiūlymas:"]
["Nr.","Pavadinimas","Kiekis","Mato vienetas","Kaina be PVM, Eur","Suma be PVM, Eur"]
["1.","Plokštelės, sraigtai, vielos"]
["1.1.","1,3-1,5 mm storio T formos užrakinama kondiliarinė plokštelė, 7 kiaurymių plokštelės \"stiebe\", 2 kiaurymių \"galvoje\", su įpjova tarp kiaurymių, 54 ± 1,0 mm ilgio, pagaminta iš titano. Fiksuojama Ø 2,0 mm užrakinamais ir Ø 2,0 mm kortikaliniais sraigtais.",30,"vnt",95.43,{"$f":"IF(ISBLANK(E37),\"\", PRODUCT(C37,E37))","v":2862.9}]
["1.2.","1,3 ± 0,05 mm storio T formos užrakinama plokštelė, pagaminta iš titano. 7 kiaurymės plokštelės \"stiebe\", 3 kiaurymės \"galvoje\", 52 ± 1,0 mm ilgio. Fiksuojama Ø 2,0 mm užrakinamais ir Ø 2,0 mm kortikaliniais sraigtais.",10,"vnt",95.43,954.30000000000007]
["1.3.","1,3 ± 0,05 mm storio Y formos užrakinama plokštelė, 7 kiaurymių plokštelės \"stiebe\", 3 kiaurymių \"galvoje\", pagaminta iš titano. Fiksuojama Ø 2,0 mm užrakinamais ir Ø 2,0 mm kortikaliniais sraigtais.",10,"vnt",95.43,954.30000000000007]
["1.4.","2,0 mm užrakinami sraigtai, pilnu sriegiu, dvejopų sriegių (užsriegta ir sraigto galvutė), pagaminti iš titano lydinio. Sukami šešiakampės žvaigždės formos atsuktuvu",50,"vnt",18.809999999999999,940.49999999999989]
["1.5.","2,0 mm užrakinami sraigtai, pilnu sriegiu, dvejopų sriegių (užsriegta ir sraigto galvutė), pagaminti iš titano lydinio. Sukami šešiakampės žvaigždės formos atsuktuvu",200,"vnt",22.59,4518]
["1.6.","Kulnikaulio užrakinama plokštelė (visos kiaurymės užrakinamos), universali, pagaminta iš titano. Fiksuojama Ø 3,5 mm užrakinamais sraigtais, pagamintais iš titano lydinio.",20,"vnt",196.32,3926.3999999999996]
["1.7.","Raktikaulio S formos, anatomiškai išlenkta, užrakinama plokštelė. 3,0 - 3,5 mm storio, pagaminta iš titano, pasukta išilgai savo ašies pagal laikrodžio rodyklę. Fiksuojama Ø 3,5 mm užrakinamais ir Ø 3,5 mm kortikaliniais sraigtais.",20,"vnt",187.05,3741]
["1.8.","Plokštelės tubuliarinės 1/3, pagamintos iš plieno. Fiksuojamos Ø 3,5 mm kortikaliniais sraigtais",800,"vnt",29.94,23952]
["1.9.","Plokštelės rekonstrukcinės, tiesios, pagamintos iš plieno. Fiksuojamos Ø 3,5 mm kortikaliniais sraigtais.",60,"vnt",53.61,3216.6]
["1.10.","3,5 mm kortikaliniai sraigtai, pilnu sriegiu, pagaminti iš plieno.",2000,"vnt",2.92,5840]
["1.11.","3,5 mm kortikaliniai sraigtai, pilnu sriegiu, pagaminti iš plieno.",1000,"vnt",3.27,3270]
["1.12.","Ø 4,5 mm kaniuliuoti sraigtai, daliniu sriegiu, savisriegiai, pagaminti iš titano lydinio.",150,"vnt",28.2,4230]
["1.13.","Kiršnerio viela Ø 1,1 x 150 - 180 mm",2000,"vnt",3.29,6580]
["1.14.","Kiršnerio viela Ø 1,2 x 150 - 180 mm",500,"vnt",3.29,1645]
["1.15.","Kiršnerio viela Ø 1,6 x 150 - 180 mm",1200,"vnt",3.29,3948]
["1.16.","Kiršnerio viela, kurios vienas galas užaštrintas Ø 1,5 x 150",3000,"vnt",4.29,12870]
["1.17.","Kiršnerio viela, kurios vienas galas užaštrintas arba su sriegiu",2000,"vnt",3.92,7840]
["1.18.","Kartu su pirkimo dalies prekėmis turi būti pateiktas pilnas instrumentų rinkinys panaudai, nurodant konkrečių  panaudai duodamų instrumentų REF kodus ir rinkinio sudėtį",2,"kompl",0,0]
[null,null,null,null,"Suma be PVM",{"$f":"IF((SUMPRODUCT(--(F37:F54=\"\"))>0), \"\", SUM(F37:F54))","v":91289},{"$f":"IF((SUMPRODUCT(--(F37:F54=\"\"))>0), \"Neužpildytos visų objektų kainos\", \"\")","v":""}]
[null,null,null,null,"PVM suma",4564.45]
[null,null,null,null,"Suma su PVM",{"$f":"IF(ISBLANK(F56), \"\", SUM(F55:F56))","v":95853.45}]
[]
[]
[]
["2. DALIS","INTRAMEDULINĖS VINYS IR SRAIGTAI"]
[]
["Tiekėjo pasiūlymas:"]
["Nr.","Pavadinimas","Kiekis","Mato vienetas","Kaina be PVM, Eur","Suma be PVM, Eur"]
["2.","Intramedulinės vinys ir sraigtai"]
["2.1.","Kaniuliuotos titaninės PFNA vinys. Vinies palinkimo kampas 5°. Proksimalinio vinies galo Ø 16,5 mm. Proksimaliniame vinies gale yra 1 kiaurymė rakinančiam sraigtui, kurio Ø 10,3 mm ir jis įvedamas 130° kampu.  Distaliniame vinies gale yra 1 kiaurymė skersinio tvirtinimo sraigtui, kurio Ø 4,9 - 5,0 mm.",5,"vnt",217.52,{"$f":"IF(ISBLANK(E66),\"\", PRODUCT(C66,E66))","v":1087.6000000000001}]
["2.2.","Kaniuliuotos titaninės PFNA vinys. Vinies palinkimo kampas 5°. Proksimalinio vinies galo Ø 16,5 mm. Proksimaliniame vinies gale yra 1 kiaurymė rakinančiam sraigtui, kurio Ø 10,3 mm ir jis įvedamas 130° kampu.  Distaliniame vinies gale yra 1 kiaurymė skersinio tvirtinimo sraigtui, kurio Ø 4,9 - 5,0 mm.",10,"vnt",217.52,2175.2000000000003]
["2.3.","Kaniuliuotos titaninės PFNA vinys. Vinies palinkimo kampas 5°. Proksimalinio vinies galo Ø 16,5 mm. Proksimaliniame vinies gale yra 1 kiaurymė rakinančiam sraigtui, kurio Ø 10,3 mm ir jis įvedamas 130° kampu.  Distaliniame vinies gale yra 1 kiaurymė skersinio tvirtinimo sraigtui, kurio Ø 4,9 - 5,0 mm.",75,"vnt",237.29,17796.75]
["2.4.","Kaniuliuotos titaninės PFNA vinys. Vinies palinkimo kampas 5°. Proksimalinio vinies galo Ø 16,5 mm. Proksimaliniame vinies gale yra 1 kiaurymė rakinančiam sraigtui, kurio Ø 10,3 mm ir jis įvedamas 130° kampu.  Distaliniame vinies gale yra 1 kiaurymė skersinio tvirtinimo sraigtui, kurio Ø 4,9 - 5,0 mm.",80,"vnt",237.29,18983.2]
["2.5.","Kaniuliuoti Ø 10,3-10,5 mm sraigtai, pagaminti iš titano lydinio. Naudojami PFNA vinių proksimaliniame gale.",80,"vnt",198.34,15867.2]
["2.6.","Kaniuliuoti Ø 10,3-10,5 mm sraigtai, pagaminti iš titano lydinio. Naudojami PFNA vinių proksimaliniame gale.",160,"vnt",217.71,34833.599999999999]
["2.7.","Ø 4,5-5,0 mm skersinio tvirtinimo sraigtai, pilnu sriegiu, pagaminti iš titano lydinio. Sraigto galvutėje yra vidinis sriegis, skirtas sraigto prisukimui prie atsuktuvo. Naudojami PFNA vinių distaliniame gale.",100,"vnt",32.24,3224]
["2.8.","PFNA vinių proksimalinio galo aklė, pagaminta iš titano lydinio. Ne mažiau 4 ilgių.",40,"vnt",22.24,889.59999999999991]
["2.9.","Kartu su pirkimo dalies prekėmis turi būti pateiktas pilnas instrumentų rinkinys panaudai, nurodant konkrečių  panaudai duodamų instrumentų REF kodus ir rinkinio sudėtį",2,"kompl",0,0]
[null,null,null,null,"Suma be PVM",{"$f":"IF((SUMPRODUCT(--(F66:F74=\"\"))>0), \"\", SUM(F66:F74))","v":94857.15},{"$f":"IF((SUMPRODUCT(--(F66:F74=\"\"))>0), \"Neužpildytos visų objektų kainos\", \"\")","v":""}]
[null,null,null,null,"PVM suma",4742.8599999999997]
[null,null,null,null,"Suma su PVM",{"$f":"IF(ISBLANK(F76), \"\", SUM(F75:F76))","v":99600.01}]
[]
[]
[]
["3. DALIS","PLOKŠTELĖS, SRAIGTAI"]
[]
["Tiekėjo pasiūlymas:"]
["Nr.","Pavadinimas","Kiekis","Mato vienetas","Kaina be PVM, Eur","Suma be PVM, Eur"]
["3.","Plokštelės, sraigtai"]
["3.1.","Proksimalinio žąstikaulio galo užrakinama plokštelė,  pagaminta iš titano. Fiksuojama Ø 3,5 mm užrakinamais ir Ø 3,5 mm kortikaliniais sraigtais.",100,"vnt",181.48,{"$f":"IF(ISBLANK(E86),\"\", PRODUCT(C86,E86))","v":18148}]
["3.2.","Proksimalinio žąstikaulio galo užrakinama plokštelė,  pagaminta iš titano. Fiksuojama Ø 3,5 mm užrakinamais ir Ø 3,5 mm kortikaliniais sraigtais.",20,"vnt",181.48,3629.6]
["3.3.","Distalinio blauzdikaulio galo medialinė užrakinama plokštelė, su išsikišusiu trikampiu vienam užrakinamam sraigtui distalinėje dalyje, pagaminta iš titano. Fiksuojama Ø 3,5 mm užrakinamais ir Ø 3,5 mm kortikaliniais sraigtais.",20,"vnt",199.86,3997.2000000000003]
["3.4.","Proksimalinio blauzdikaulio galo šoninė užrakinama kompresinė plokštelė, pagaminta iš titano. Fiksuojama Ø 3,5-5,0 mm užrakinamais ir Ø 3,5-4,5 mm kortikaliniais sraigtais.",20,"vnt",195.51,3910.2]
["3.5.","Anatomiškai išlenkta stipinkaulio distalinio galo plokštelė, pagaminta iš titano. Plokštelės \"galvoje\" yra 2 eilės septyniems Ø 2.5-2.7 mm užrakinamiems sraigtams, kurie įsukami įvairiais nustatytais kampais. Fiksuojama Ø 2.5-2.7 mm užrakinamais sraigtais ir Ø 3,5 mm kortikaliniais sraigtais.",15,"vnt",179.36,2690.4]
["3.6.","Ø 2,7 mm užrakinami savisriegiai sraigtai, pilnu sriegiu, pagaminti iš titano lydinio.",100,"vnt",20.73,2073]
["3.7.","Ø 2,7 mm užrakinami savisriegiai sraigtai, pilnu sriegiu, pagaminti iš titano lydinio.",40,"vnt",24.15,966]
["3.8.","Ø 2,7 mm užrakinami savisriegiai sraigtai, pilnu sriegiu, pagaminti iš titano lydinio.",30,"vnt",24.15,724.5]
["3.9.","Kartu su pirkimo dalies prekėmis turi būti pateiktas pilnas instrumentų rinkinys panaudai, nurodant konkrečių  panaudai duodamų instrumentų REF kodus ir rinkinio sudėtį",2,"kompl",0,0]
[null,null,null,null,"Suma be PVM",{"$f":"IF((SUMPRODUCT(--(F86:F94=\"\"))>0), \"\", SUM(F86:F94))","v":36138.9},{"$f":"IF((SUMPRODUCT(--(F86:F94=\"\"))>0), \"Neužpildytos visų objektų kainos\", \"\")","v":""}]
[null,null,null,null,"PVM suma",1806.95]
[null,null,null,null,"Suma su PVM",{"$f":"IF(ISBLANK(F96), \"\", SUM(F95:F96))","v":37945.85}]
[]
[]
[]
["4. DALIS","PLOKŠTELĖS IR SRAIGTAI, SKIRTI SUDĖTINGŲ LŪŽIŲ FIKSACIJAI"]
[]
["Tiekėjo pasiūlymas:"]
["Nr.","Pavadinimas","Kiekis","Mato vienetas","Kaina be PVM, Eur","Suma be PVM, Eur"]
["4.","Plokštelės ir sraigtai, skirti sudėtingų lūžių fiksacijai"]
["4.1.","Plokštelės tiesios",20,"vnt",148.91,{"$f":"IF(ISBLANK(E106),\"\", PRODUCT(C106,E106))","v":2978.2}]
["4.2.","\"T\" formos plokštelė",20,"vnt",158.47,3169.4]
["4.3.","Plokštelės tiesios",10,"vnt",194.88,1948.8]
["4.4.","Sraigtai savisriegiai 1,2-1,5 diametro",50,"vnt",40.340000000000003,2017.0000000000002]
["4.5.","\"T\" formos plokštelė",10,"vnr",201.77,2017.7]
["4.6.","Sraigtai savisriegiai 1,7-2,0 diametro",100,"vnt",40.880000000000003,4088.0000000000005]
["4.7.","Plokštelės tiesios",10,"vnt",167.47,1674.7]
["4.8.","Plokštelės tiesios",10,"vnt",190.99,1909.9]
["4.9.","\"T\" formos plokštelė",10,"vnt",140.32,1403.1999999999998]
["4.10.","Stipinkaulio plokštelės",150,"vnt",280.41000000000003,42061.500000000007]
["4.11.","Savisriegiai sraigtai 2,0 - 2,7 diametro",1400,"vnt",29.74,41636]
["4.12.","Savisriegiai sraigtai 2,0 - 2,7 diametro",200,"vnt",30.98,6196]
["4.13.","Sraigtai savisriegiai 2,0-2,3 diametro",500,"vnt",32.340000000000003,16170.000000000002]
["4.14.","Riešo artrodezinė plokštelė",30,"vnt",180.02,5400.6]
["4.15.","Savisriegiai sraigtai 2,0 - 2,7 diametro",400,"vnt",30.33,12132]
["4.16.","Kompresiniai sraigtai",60,"vnt",96.52,5791.2]
["4.17.","Kompresiniai sraigtai",10,"vnt",85.38,853.8]
[null,null,null,null,"Suma be PVM",{"$f":"IF((SUMPRODUCT(--(F106:F122=\"\"))>0), \"\", SUM(F106:F122))","v":151448},{"$f":"IF((SUMPRODUCT(--(F106:F122=\"\"))>0), \"Neužpildytos visų objektų kainos\", \"\")","v":""}]
[null,null,null,null,"PVM suma",7572.4]
[null,null,null,null,"Suma su PVM",{"$f":"IF(ISBLANK(F124), \"\", SUM(F123:F124))","v":159020.4}]
[]
[]
[]
["5. DALIS","PETIES AKROMIOKLAVIKULINIO SĄNARIOFIKSACINĖ SISTEMA"]
[]
["Tiekėjo pasiūlymas:"]
["Nr.","Pavadinimas","Kiekis","Mato vienetas","Kaina be PVM, Eur","Suma be PVM, Eur"]
["5.","Peties akromioklavikulinio sąnariofiksacinė sistema"]
["5.1.","Peties akromioklavikulinio sąnariofiksacinė sistema",20,"vnt",null,{"$f":"IF(ISBLANK(E134),\"\", PRODUCT(C134,E134))","v":""}]
[null,null,null,null,"Suma be PVM",{"$f":"IF(F134=\"\",\"\",SUM(F134:F134))","v":""},{"$f":"IF(F134=\"\",\"Neužpildytos visos objektų kainos\",\"\")","v":"Neužpildytos visos objektų kainos"}]
[null,null,null,null,"PVM suma"]
[null,null,null,null,"Suma su PVM",{"$f":"IF(ISBLANK(F136), \"\", SUM(F135:F136))","v":""}]
[]
[]
[]
["6. DALIS","INKARINĖ SISTEMA, ACHILO SAUSGYSLĖMS OPERACIJOMS"]
[]
["Tiekėjo pasiūlymas:"]
["Nr.","Pavadinimas","Kiekis","Mato vienetas","Kaina be PVM, Eur","Suma be PVM, Eur"]
["6.","Inkarinė sistema, achilo sausgyslėms operacijoms"]
["6.1.","Inkarinė sistema, achilo sausgyslėms operacijoms",14,"vnt",null,{"$f":"IF(ISBLANK(E146),\"\", PRODUCT(C146,E146))","v":""}]
[null,null,null,null,"Suma be PVM",{"$f":"IF(F146=\"\",\"\",SUM(F146:F146))","v":""},{"$f":"IF(F146=\"\",\"Neužpildytos visos objektų kainos\",\"\")","v":"Neužpildytos visos objektų kainos"}]
[null,null,null,null,"PVM suma"]
[null,null,null,null,"Suma su PVM",{"$f":"IF(ISBLANK(F148), \"\", SUM(F147:F148))","v":""}]
[]
[]
[]
["7. DALIS","MENISKO SUSIUVIMO INKARINĖ SISTEMA"]
[]
["Tiekėjo pasiūlymas:"]
["Nr.","Pavadinimas","Kiekis","Mato vienetas","Kaina be PVM, Eur","Suma be PVM, Eur"]
["7.","Menisko susiuvimo inkarinė sistema"]
["7.1.","Menisko susiuvimo inkarinė sistema",40,"vnt",null,{"$f":"IF(ISBLANK(E158),\"\", PRODUCT(C158,E158))","v":""}]
[null,null,null,null,"Suma be PVM",{"$f":"IF(F158=\"\",\"\",SUM(F158:F158))","v":""},{"$f":"IF(F158=\"\",\"Neužpildytos visos objektų kainos\",\"\")","v":"Neužpildytos visos objektų kainos"}]
[null,null,null,null,"PVM suma"]
[null,null,null,null,"Suma su PVM",{"$f":"IF(ISBLANK(F160), \"\", SUM(F159:F160))","v":""}]
[]
[]
[]
["8. DALIS","UŽRAKINANTYS PETIES SĄNARIO IMPLANTAI LATERALINEI EILEI"]
[]
["Tiekėjo pasiūlymas:"]
["Nr.","Pavadinimas","Kiekis","Mato vienetas","Kaina be PVM, Eur","Suma be PVM, Eur"]
["8.","Užrakinantys peties sąnario implantai lateralinei eilei"]
["8.1.","Užrakinantys peties sąnario implantai lateralinei eilei",42,"vnt",null,{"$f":"IF(ISBLANK(E170),\"\", PRODUCT(C170,E170))","v":""}]
[null,null,null,null,"Suma be PVM",{"$f":"IF(F170=\"\",\"\",SUM(F170:F170))","v":""},{"$f":"IF(F170=\"\",\"Neužpildytos visos objektų kainos\",\"\")","v":"Neužpildytos visos objektų kainos"}]
[null,null,null,null,"PVM suma"]
[null,null,null,null,"Suma su PVM",{"$f":"IF(ISBLANK(F172), \"\", SUM(F171:F172))","v":""}]
[]
[]
[]
["9. DALIS","PETIES SĄNARIO IMPLANTAI"]
[]
["Tiekėjo pasiūlymas:"]
["Nr.","Pavadinimas","Kiekis","Mato vienetas","Kaina be PVM, Eur","Suma be PVM, Eur"]
["9.","Peties sąnario implantai"]
["9.1.","Peties sąnario implantai",140,"vnt",null,{"$f":"IF(ISBLANK(E182),\"\", PRODUCT(C182,E182))","v":""}]
["9.2.","Peties sąnario implantai",100,"vnt",null,{"$f":"IF(ISBLANK(E183),\"\", PRODUCT(C183,E183))","v":""}]
[null,null,null,null,"Suma be PVM",{"$f":"IF((SUMPRODUCT(--(F182:F183=\"\"))>0), \"\", SUM(F182:F183))","v":""},{"$f":"IF((SUMPRODUCT(--(F182:F183=\"\"))>0), \"Neužpildytos visų objektų kainos\", \"\")","v":"Neužpildytos visų objektų kainos"}]
[null,null,null,null,"PVM suma"]
[null,null,null,null,"Suma su PVM",{"$f":"IF(ISBLANK(F185), \"\", SUM(F184:F185))","v":""}]
[]
[]
[]
["10. DALIS","ARTROSKOPINIAI INSTRUMENTAI"]
[]
["Tiekėjo pasiūlymas:"]
["Nr.","Pavadinimas","Kiekis","Mato vienetas","Kaina be PVM, Eur","Suma be PVM, Eur"]
["10.","Artroskopiniai instrumentai"]
["10.1.","Teleskopas",1,"vnt",null,{"$f":"IF(ISBLANK(E195),\"\", PRODUCT(C195,E195))","v":""}]
["10.2.","Šviesolaidis",1,"vnt",null,""]
["10.3.","Teleskopas",1,"vnt",null,""]
["10.4.","Šviesolaidis",1,"vnt",null,""]
["10.5.","Trokaro mova",1,"vnt",null,""]
["10.6.","Trokaro mova",1,"vnt",null,""]
["10.7.","Žnyplės",2,"vnt",null,""]
["10.8.","Žnyplės",2,"vnt",null,""]
["10.9.","Gramdiklis",1,"vnt",null,""]
["10.10.","Dėklas instrumentų autoklavavimui",2,"vnt",null,""]
["10.11.","Micro šeiverio rankena",1,"vnt",null,""]
["10.12.","Šeiverio antgalis",1,"vnt",null,""]
["10.13.","Šeiverio antgalis",1,"vnt",null,""]
["10.14.","Šeiverio antgalis",1,"vnt",null,""]
["10.15.","Šeiverio antgalis",1,"vnt",null,""]
["10.16.","Šeiverio antgalis",1,"vnt",null,""]
["10.17.","Šeiverio antgalis",1,"vnt",null,""]
["10.18.","Šeiverio antgalis",1,"vnt",null,""]
["10.19.","Šeiverio antgalis",1,"vnt",null,""]
["10.20.","Šeiverio antgalis",1,"vnt",null,""]
["10.21.","Šeiverio antgalis",1,"vnt",null,""]
[null,null,null,null,"Suma be PVM",{"$f":"IF((SUMPRODUCT(--(F195:F215=\"\"))>0), \"\", SUM(F195:F215))","v":""},{"$f":"IF((SUMPRODUCT(--(F195:F215=\"\"))>0), \"Neužpildytos visų objektų kainos\", \"\")","v":"Neužpildytos visų objektų kainos"}]
[null,null,null,null,"PVM suma"]
[null,null,null,null,"Suma su PVM",{"$f":"IF(ISBLANK(F217), \"\", SUM(F216:F217))","v":""}]
[]
[]
[]
["11. DALIS","SIŪLAI RAIŠČIAMS – SIUVIMO PRIEMONĖ"]
[]
["Tiekėjo pasiūlymas:"]
["Nr.","Pavadinimas","Kiekis","Mato vienetas","Kaina be PVM, Eur","Suma be PVM, Eur"]
["11.","Siūlai raiščiams – siuvimo priemonė"]
["11.1.","Siūlai raiščiams – siuvimo priemonė",100,"vnt",null,{"$f":"IF(ISBLANK(E227),\"\", PRODUCT(C227,E227))","v":""}]
[null,null,null,null,"Suma be PVM",{"$f":"IF(F227=\"\",\"\",SUM(F227:F227))","v":""},{"$f":"IF(F227=\"\",\"Neužpildytos visos objektų kainos\",\"\")","v":"Neužpildytos visos objektų kainos"}]
[null,null,null,null,"PVM suma"]
[null,null,null,null,"Suma su PVM",{"$f":"IF(ISBLANK(F229), \"\", SUM(F228:F229))","v":""}]
[]
[]
[]
["12. DALIS","SIŪLAI RAIŠČIAMS – SIUVIMO PRIEMONĖ"]
[]
["Tiekėjo pasiūlymas:"]
["Nr.","Pavadinimas","Kiekis","Mato vienetas","Kaina be PVM, Eur","Suma be PVM, Eur"]
["12.","Siūlai raiščiams – siuvimo priemonė"]
["12.1.","Siūlai raiščiams – siuvimo priemonė",150,"vnt",null,{"$f":"IF(ISBLANK(E239),\"\", PRODUCT(C239,E239))","v":""}]
[null,null,null,null,"Suma be PVM",{"$f":"IF(F239=\"\",\"\",SUM(F239:F239))","v":""},{"$f":"IF(F239=\"\",\"Neužpildytos visos objektų kainos\",\"\")","v":"Neužpildytos visos objektų kainos"}]
[null,null,null,null,"PVM suma"]
[null,null,null,null,"Suma su PVM",{"$f":"IF(ISBLANK(F241), \"\", SUM(F240:F241))","v":""}]
[]
[]
[]
["13. DALIS","SIŪLAI RAIŠČIAMS – SIUVIMO PRIEMONĖ"]
[]
["Tiekėjo pasiūlymas:"]
["Nr.","Pavadinimas","Kiekis","Mato vienetas","Kaina be PVM, Eur","Suma be PVM, Eur"]
["13.","Siūlai raiščiams – siuvimo priemonė"]
["13.1.","Siūlai raiščiams – siuvimo priemonė",100,"vnt",null,{"$f":"IF(ISBLANK(E251),\"\", PRODUCT(C251,E251))","v":""}]
[null,null,null,null,"Suma be PVM",{"$f":"IF(F251=\"\",\"\",SUM(F251:F251))","v":""},{"$f":"IF(F251=\"\",\"Neužpildytos visos objektų kainos\",\"\")","v":"Neužpildytos visos objektų kainos"}]
[null,null,null,null,"PVM suma"]
[null,null,null,null,"Suma su PVM",{"$f":"IF(ISBLANK(F253), \"\", SUM(F252:F253))","v":""}]

{"sheet":"Subtiekėjai ir priedai","index":1,"n_rows":100,"n_cols":11,"rows_kept":100,"cut":false,"hidden":false,"merged":[[47,0,47,9],[52,4,52,9],[50,4,50,9],[52,0,52,3],[50,0,50,3],[38,1,38,6],[37,1,37,6],[36,1,36,6],[35,1,35,6],[43,1,43,6],[42,1,42,6],[41,1,41,6],[40,1,40,6],[39,1,39,6],[32,0,32,9],[34,7,34,9],[34,1,34,6],[45,7,45,9],[42,7,42,9],[37,7,37,9],[36,7,36,9],[35,7,35,9],[44,7,44,9],[43,7,43,9],[41,7,41,9],[40,7,40,9],[39,7,39,9],[38,7,38,9],[45,1,45,6],[44,1,44,6],[1,0,2,10],[30,0,30,9],[14,5,14,7],[8,5,8,7],[7,5,7,7],[6,5,6,7],[14,8,14,9],[8,8,8,9],[7,8,7,9],[6,8,6,9],[14,0,14,1],[8,0,8,1],[7,0,7,1],[6,0,6,1],[14,2,14,4],[8,2,8,4],[7,2,7,4],[9,8,9,9],[6,2,6,4],[5,2,5,4],[5,8,5,9],[4,8,4,9],[4,5,4,7],[4,2,4,4],[4,0,4,1],[5,5,5,7],[5,0,5,1],[9,0,9,1],[13,2,13,4],[12,2,12,4],[11,2,11,4],[10,2,10,4],[9,2,9,4],[13,5,13,7],[12,5,12,7],[11,5,11,7],[10,5,10,7],[9,5,9,7],[16,0,16,10],[18,8,18,9],[18,5,18,7],[18,2,18,4],[18,0,18,1],[13,0,13,1],[12,0,12,1],[11,0,11,1],[10,0,10,1],[13,8,13,9],[12,8,12,9],[11,8,11,9],[10,8,10,9],[23,8,23,9],[22,8,22,9],[21,8,21,9],[20,8,20,9],[19,8,19,9],[28,8,28,9],[27,8,27,9],[26,8,26,9],[25,8,25,9],[24,8,24,9],[23,5,23,7],[22,5,22,7],[21,5,21,7],[20,5,20,7],[19,5,19,7],[28,5,28,7],[27,5,27,7],[26,5,26,7],[25,5,25,7],[24,5,24,7],[23,2,23,4],[22,2,22,4],[21,2,21,4],[20,2,20,4],[19,2,19,4],[28,2,28,4],[27,2,27,4],[26,2,26,4],[25,2,25,4],[24,2,24,4],[23,0,23,1],[22,0,22,1],[21,0,21,1],[20,0,20,1],[19,0,19,1],[28,0,28,1],[27,0,27,1],[26,0,26,1],[25,0,25,1],[24,0,24,1]]}
[]
["Ūkio subjektai (įskaitant kvazisubtiekėjus - fiziniai asmenys, kuriuos ketinama įdarbinti pirkimo laimėjimo atveju), kurių pajėgumais tiekėjas remiasi, kad atitiktų keliamus kvalifikacijos reikalavimus:"]
[]
[]
["Pavadinimas*",null,"Kodas, adresas",null,null,"Perduodami įsipareigojimai",null,null,"Perduodamų įsipareigojimų dalis nuo visos pirkimo sutarties (Eur arba %)",null,"Kval. Reikalavimo Nr."]
[]
[]
[]
[]
[]
[]
[]
[]
[]
[]
[]
["Subtiekėjams / subteikėjams / subrangovams numatomos perduoti veiklos (privaloma nurodyti) ir šių ūkio subjektų pavadinimai (jei žinomi):"]
[]
["Pavadinimas",null,"Kodas, adresas",null,null,"Perduodama veikla*",null,null,"Perduodamos veiklos dalis nuo visos pirkimo sutarties (Eur arba %)"]
[]
[]
[]
[]
[]
[]
[]
[]
[]
[]
[]
[]
[]
["Kartu su pasiūlymu pateikiami šie dokumentai:"]
[]
["Nr.","Dokumento  pavadinimas",null,null,null,null,null,"Dokumentas yra konfidencialus? Taip/Ne"]
["1","Jungtinės veiklos kopija (jei taikoma)"]
["2","Europos bendrasis viešųjų pirkimų dokumentas",null,null,null,null,null,"Ne"]
["3","Subtiekimo sutartis, ketinimų protokolas, preliminarios sutartys ar kiti dokumentai, patvirtinantys, kad laimėjus pirkimą tiekėjui bus prieinami kitų ūkio subjektų ištekliai (jei pasitelkiami kvalifikacijos atitikimui)"]
["4","Pasiūlymo atitikimą pirkimo sąlygų techninei specifikacijai pagrindžiantys dokumentai",null,null,null,null,null,"Taip"]
[5,"Katalogas 1.1 - KONFIDENCIALU",null,null,null,null,null,"Taip"]
[6,"Katalogas 1.2 - KONFIDENCIALU",null,null,null,null,null,"Taip"]
[7,"Katalogas 2 - KONFIDENCIALU",null,null,null,null,null,"Taip"]
[8,"Katalogas 3 - KONFIDENCIALU",null,null,null,null,null,"Taip"]
[9,"Katalogas 4.1 - KONFIDENCIALU",null,null,null,null,null,"Taip"]
[10,"Katalogas 4.2 - KONFIDENCIALU",null,null,null,null,null,"Taip"]
[11,"Katalogas 4.3 - KONFIDENCIALU",null,null,null,null,null,"Taip"]
[]
["Pasiūlyme nurodyta Prekės kaina, išskyrus jos sudedamąsias dalis, subtiekėjai, taip pat kita informacija, kuri teisės aktų nustatyta tvarka turi būti skelbiama arba kitokiu būdu viešai prieinama visuomenei, nėra laikoma konfidencialia informacija. Konfidencialią informaciją sudaro, visų pirma, komercinė (gamybinė) paslaptis ir konfidencialieji pasiūlymų aspektai. Informacija, kurią viešai skelbti įpareigoja Lietuvos Respublikos įstatymai, negali būti tiekėjo nurodoma kaip konfidenciali, todėl, tiekėjui nurodžius tokią informaciją kaip konfidencialią, perkančioji organizacija turi teisę ją skelbti. Jei tiekėjas nenurodo konfidencialios informacijos, laikoma, kad konfidencialios informacijos tiekėjo pasiūlyme nėra. Vadovaujantis Informacijos viešinimo Centrinėje viešųjų pirkimų informacinėje sistemoje tvarkos aprašu, patvirtintu Viešųjų pirkimų tarnybos direktoriaus 2017 m. birželio 19 d. įsakymu Nr. 1S-91 „Dėl Informacijos viešinimo Centrinėje viešųjų pirkimų informacinėje sistemoje tvarkos aprašo patvirtinimo“, perkančioji organizacija laimėjusio dalyvio pasiūlymą, išskyrus informaciją, kurią tiekėjas nurodė kaip konfidencialią, paskelbs CVP IS."]
[]
[]
["Tiekėjo arba jo įgalioto asmens pareigų pavadinimas:",null,null,null,"Direktorius"]
[]
["Pasirašančio asmens vardas ir pavardė:",null,null,null,"Gintaras Vaitkevičius"]
[]
[]
[]
[]
[]
[]
[]
[]
[]
[]
[]
[]
[]
[]
[]
[]
[]
[]
[]
[]
[]
[]
[]
[]
[]
[]
[]
[]
[]
[]
[]
[]
[]
[]
[]
[]
[]
[]
[]
[]
[]
[]
[]
[]
[]
[]
["5593 2021-09-01 08:53:58"]